fUSD/lending_fUSD_20250804
["ID","MTS","AMOUNT","RATE_DAILY","PERIOD"]
[377215918,1754296250229,-400.0,0.00046575,120]
[377215919,1754296250238,-400.0,0.00046575,120]
[377215920,1754296250248,-461.72,0.00046575,120]
[377215921,1754296250257,-503.83,0.00046575,120]
[377215922,1754296250267,-402.41235646,0.00046575,120]
[377215923,1754296250276,-860.07,0.00046575,120]
[377215924,1754296250286,-400.0,0.00046575,120]
[377215925,1754296250296,-1368.97,0.00046575,120]
[377215926,1754296250305,-400.0,0.00046575,120]
[377215927,1754296250314,-1058.04,0.00046575,120]
[377215928,1754296250324,-455.59,0.00046575,120]
[377215929,1754296250333,-865.22,0.00046575,120]
[377215930,1754296250343,-400.0,0.00046575,120]
[377215931,1754296250352,-408.81,0.00046575,120]
[377215932,1754296250362,-400.0,0.00046575,120]
[377215933,1754296250372,-400.0,0.00046575,120]
[377215934,1754296250382,-407.42736793,0.00046575,120]
[377215935,1754296250391,-400.0,0.00046575,120]
[377215936,1754296250401,-400.0,0.00046575,120]
[377215937,1754296250415,-273.72362636,0.00046575,120]
[377215938,1754296250424,-848.89,0.00046575,120]
[377215939,1754296250435,-980.96,0.00046575,120]
[377215940,1754296250445,-1485.21,0.00046575,120]
[377215941,1754296250455,-953.62,0.00046575,120]
[377215942,1754296250465,-828.63,0.00046575,120]
[377215943,1754296250475,-736.55,0.00046575,120]
[377215944,1754296250484,-150.407078,0.00046575,120]
[377215945,1754296250494,-400.0,0.00046575,120]
[377215946,1754296250504,-1784.64,0.00046575,120]
[377215947,1754296250520,-546.1,0.00046575,120]
[377215948,1754296250529,-506.97,0.00046575,120]
[377215949,1754296250539,-400.0,0.00046575,120]
[377215950,1754296250548,-151.170373,0.00046575,14]
[377215951,1754296250559,-463.97,0.00046575,120]
[377215952,1754296250570,-151.170373,0.00046575,14]
[377215953,1754296250580,-151.0,0.00046575,14]
[377215954,1754296250591,-151.0,0.00046575,14]
[377215955,1754296250600,-151.0,0.00046575,14]
[377215956,1754296250610,-320.99978506,0.00046575,120]
[377215957,1754296250619,-400.0,0.00046575,120]
[377215958,1754296250628,-400.0,0.00046575,120]
[377215959,1754296250638,-400.0,0.00046575,120]
[377215960,1754296250648,-199.24701674,0.00046575,120]
[377215961,1754296250657,-1156.24,0.00046575,120]
[377215962,1754296250667,-151.170373,0.00046575,14]
[377215963,1754296250676,-418.12,0.00046575,120]
[377215964,1754296250686,-926.13,0.00046575,120]
[377215965,1754296250695,-151.170373,0.00046575,14]
[377215966,1754296250705,-408.23885548,0.00046575,120]
[377215967,1754296250715,-400.0,0.00046575,120]
[377215968,1754296250724,-420.07,0.00046575,120]
[377215969,1754296250734,-594.98,0.00046575,120]
[377215970,1754296250743,-400.0,0.00046575,120]
[377215971,1754296250833,-400.0,0.00046575,120]
[377215972,1754296250845,-1197.61,0.00046575,120]
[377215973,1754296250854,-400.0,0.00046575,120]
[377215974,1754296250863,-420.96,0.00046575,120]
[377215975,1754296250872,-400.0,0.00046575,120]
[377215976,1754296250882,-400.0,0.00046575,120]
[377215977,1754296250891,-1537.9,0.00046575,120]
[377215978,1754296250900,-745.52,0.00046575,120]
[377215979,1754296250909,-400.0,0.00046575,120]
[377215980,1754296250919,-400.0,0.00046575,120]
[377215981,1754296250928,-400.0,0.00046575,120]
[377215982,1754296250937,-7628.79,0.00046575,120]
[377215983,1754296250946,-400.0,0.00046575,120]
[377215984,1754296250955,-245.0,0.00046575,14]
[377215985,1754296250965,-884.24,0.00046575,120]
[377215986,1754296250974,-400.0,0.00046575,120]
[377215987,1754296250983,-383.60800051,0.00046575,120]
[377215988,1754296250992,-400.0,0.00046575,120]
[377215989,1754296251002,-400.0,0.00046575,120]
[377215990,1754296251011,-410.83,0.00046575,120]
[377215991,1754296251020,-775.11,0.00046575,120]
[377215992,1754296251029,-400.0,0.00046575,120]
[377215993,1754296251039,-1441.92,0.00046575,120]
[377215994,1754296251049,-593.78,0.00046575,120]
[377215995,1754296251058,-1314.04,0.00046575,120]
[377215996,1754296251067,-400.0,0.00046575,120]
[377215997,1754296251077,-151.0,0.00046575,14]
[377215998,1754296251086,-400.0,0.00046575,120]
[377215999,1754296251096,-156.312294,0.00046575,14]
[377216000,1754296251105,-902.15,0.00046575,120]
[377216001,1754296251114,-400.0,0.00046575,120]
[377216002,1754296251123,-487.75208849,0.00046575,120]
[377216003,1754296251133,-1362.58,0.00046575,120]
[377216004,1754296251142,-400.0,0.00046575,120]
[377216005,1754296251151,-584.1,0.00046575,120]
[377216006,1754296251160,-151.0,0.00046575,14]
[377216007,1754296251169,-400.0,0.00046575,120]
[377216008,1754296251179,-151.0,0.00046575,14]
[377216009,1754296251188,-151.234047,0.00046575,14]
[377216010,1754296251197,-151.0,0.00046575,14]
[377216011,1754296251206,-151.0,0.00046575,14]
[377216012,1754296251215,-247.744462,0.00046575,14]
[377216013,1754296251225,-400.0,0.00046575,120]
[377216014,1754296251234,-400.0,0.00046575,120]
[377216015,1754296251243,-400.0,0.00046575,120]
[377216016,1754296251252,-659.13,0.00046575,120]
[377216017,1754296251261,-400.0,0.00046575,120]
[377216018,1754296251271,-400.0,0.00046575,120]
[377216019,1754296251280,-1447.56,0.00046575,120]
[377216020,1754296251289,-151.0,0.00046575,14]
[377216021,1754296251298,-151.0,0.00046575,14]
[377216022,1754296251308,-151.0,0.00046575,14]
[377216023,1754296251317,-733.21,0.00046575,120]
[377216024,1754296251327,-400.0,0.00046575,120]
[377216025,1754296251336,-400.0,0.00046575,120]
[377216026,1754296251345,-1032.45,0.00046575,120]
[377216027,1754296251354,-403.37,0.00046575,30]
[377216028,1754296251363,-400.0,0.00046575,120]
[377216029,1754296251372,-400.0,0.00046575,120]
[377216030,1754296251381,-509.86,0.00046575,120]
[377216031,1754296251390,-423.98,0.00046575,120]
[377216032,1754296251400,-808.67,0.00046575,120]
[377216033,1754296251409,-753.3,0.00046575,120]
[377216034,1754296251418,-434.45,0.00046575,120]
[377216035,1754296251427,-400.0,0.00046575,120]
[377216036,1754296251436,-400.0,0.00046575,120]
[377216037,1754296251446,-400.0,0.00046575,120]
[377216038,1754296251455,-1151.77,0.00046575,120]
[377216039,1754296251465,-500.0,0.00046575,2]
[377216040,1754296251474,-400.0,0.00046575,120]
[377216041,1754296251483,-500.0,0.00046575,2]
[377216042,1754296251493,-1537.56,0.00046575,120]
[377216043,1754296251503,-500.0,0.00046575,2]
[377216044,1754296251515,-500.0,0.00046575,2]
[377216045,1754296251526,-500.0,0.00046575,2]
[377216046,1754296251535,-982.5,0.00046575,120]
[377216047,1754296251544,-401.07294007,0.00046575,120]
[377216048,1754296251554,-403.61870181,0.00046575,120]
[377216049,1754296251563,-151.0,0.00046575,14]
[377216050,1754296251573,-151.0,0.00046575,14]
[377216051,1754296251584,-400.0,0.00046575,7]
[377216052,1754296251595,-201.008142,0.00046575,14]
[377216053,1754296251605,-400.0,0.00046575,120]
[377216054,1754296251614,-406.13,0.00046575,120]
[377216055,1754296251623,-440.09858536,0.00046575,120]
[377216056,1754296251632,-1440.26,0.00046575,120]
[377216057,1754296251642,-400.0,0.00046575,120]
[377216058,1754296251651,-400.0,0.00046575,120]
[377216059,1754296251660,-400.0,0.00046575,120]
[377216060,1754296251670,-630.57,0.00046575,120]
[377216061,1754296251679,-400.0,0.00046575,120]
[377216062,1754296251689,-779.25,0.00046575,120]
[377216063,1754296251698,-400.0,0.00046575,120]
[377216064,1754296251707,-485.77,0.00046575,120]
[377216065,1754296251716,-400.0,0.00046575,120]
[377216066,1754296251727,-400.0,0.00046575,120]
[377216067,1754296251736,-400.0,0.00046575,120]
[377216068,1754296251745,-401.45450262,0.00046575,2]
[377216069,1754296251754,-616.01,0.00046575,120]
[377216070,1754296251764,-400.0,0.00046575,120]
[377216071,1754296251774,-400.0,0.00046575,120]
[377216072,1754296251784,-400.64297284,0.00046575,120]
[377216073,1754296251793,-400.0,0.00046575,120]
[377216074,1754296251802,-667.81,0.00046575,120]
[377216075,1754296251812,-1012.87,0.00046575,120]
[377216076,1754296251821,-402.46452705,0.00046575,120]
[377216077,1754296251830,-400.0,0.00046575,120]
[377216078,1754296251839,-910.48,0.00046575,120]
[377216079,1754296251849,-856.93,0.00046575,120]
[377216080,1754296251859,-400.0,0.00046575,120]
[377216081,1754296251868,-871.65,0.00046575,120]
[377216082,1754296251877,-400.0,0.00046575,120]
[377216083,1754296251887,-402.40094038,0.00046575,120]
[377216084,1754296251897,-400.0,0.00046575,120]
[377216085,1754296251907,-1823.88,0.00046575,120]
[377216086,1754296251917,-400.0,0.00046575,120]
[377216087,1754296251926,-400.0,0.00046575,120]
[377216088,1754296251935,-400.0,0.00046575,120]
[377216089,1754296251944,-400.0,0.00046575,120]
[377216090,1754296251954,-1175.67,0.00046575,120]
[377216091,1754296251963,-400.0,0.00046575,120]
[377216092,1754296251974,-400.0,0.00046575,120]
[377216093,1754296251984,-402.96414983,0.00046575,120]
[377216094,1754296251993,-1480.18,0.00046575,120]
[377216095,1754296252002,-1219.85,0.00046575,120]
[377216096,1754296252011,-400.0,0.00046575,120]
[377216097,1754296252020,-400.0,0.00046575,120]
[377216098,1754296252030,-417.35,0.00046575,120]
[377216099,1754296252039,-402.46708451,0.00046575,120]
[377216100,1754296252048,-1004.19,0.00046575,120]
[377216101,1754296252057,-1357.14,0.00046575,120]
[377216102,1754296252067,-400.0,0.00046575,120]
[377216103,1754296252077,-1635.27,0.00046575,120]
[377216104,1754296252086,-400.0,0.00046575,120]
[377216105,1754296252095,-2129.89,0.00046575,120]
[377216106,1754296252104,-400.0,0.00046575,120]
[377216107,1754296252114,-419.38,0.00046575,30]
[377216108,1754296252122,-729.14,0.00046575,120]
[377216109,1754296252131,-400.0,0.00046575,120]
[377216110,1754296252141,-462.33,0.00046575,120]
[377216111,1754296252150,-400.0,0.00046575,120]
[377216112,1754296252159,-406.34331232,0.00046575,120]
[377216113,1754296252168,-400.0,0.00046575,120]
[377216114,1754296252177,-400.0,0.00046575,120]
[377216115,1754296252186,-400.0,0.00046575,120]
[377216116,1754296252196,-400.0,0.00046575,120]
[377216117,1754296252205,-532.06,0.00046575,120]
[377216118,1754296252214,-400.0,0.00046575,120]
[377216119,1754296252225,-840.01,0.00046575,120]
[377216120,1754296252234,-480.94,0.00046575,120]
[377216121,1754296252244,-902.29,0.00046575,120]
[377216122,1754296252254,-400.0,0.00046575,120]
[377216123,1754296252263,-400.0,0.00046575,120]
[377216124,1754296252272,-400.0,0.00046575,120]
[377216125,1754296252282,-743.17,0.00046575,120]
[377216126,1754296252291,-400.0,0.00046575,120]
[377216127,1754296252301,-402.17267336,0.00046575,120]
[377216128,1754296252310,-1631.73,0.00046575,120]
[377216129,1754296252319,-966.38,0.00046575,120]
[377216130,1754296252329,-702.1,0.00046575,120]
[377216131,1754296252339,-404.21371918,0.00046575,120]
[377216132,1754296252348,-400.0,0.00046575,120]
[377216133,1754296252358,-400.0,0.00046575,120]
[377216134,1754296252368,-460.87,0.00046575,120]
[377216135,1754296252378,-1000.0,0.00046575,120]
[377216136,1754296252387,-529.24,0.00046575,120]
[377216137,1754296252396,-151.0,0.00046575,14]
[377216138,1754296252406,-621.3,0.00046575,120]
[377216139,1754296252415,-152.426126,0.00046575,14]
[377216140,1754296252424,-400.0,0.00046575,120]
[377216141,1754296252434,-403.27679842,0.00046575,120]
[377216142,1754296252443,-500.0,0.00046575,120]
[377216143,1754296252453,-500.0,0.00046575,120]
[377216144,1754296252463,-1093.73,0.00046575,120]
[377216145,1754296252473,-910.49,0.00046575,120]
[377216146,1754296252482,-1317.54,0.00046575,120]
[377216147,1754296252491,-151.0,0.00046575,14]
[377216148,1754296252501,-151.0,0.00046575,14]
[377216149,1754296252515,-400.0,0.00046575,120]
[377216150,1754296252525,-151.0,0.00046575,14]
[377216151,1754296252534,-466.77976177,0.00046575,120]
[377216152,1754296252543,-881.21,0.00046575,120]
[377216153,1754296252554,-507.32,0.00046575,120]
[377216154,1754296252563,-400.0,0.00046575,120]
[377216155,1754296252573,-400.0,0.00046575,120]
[377216156,1754296252583,-400.0,0.00046575,120]
[377216157,1754296252595,-702.0,0.00046575,120]
[377216158,1754296252605,-400.0,0.00046575,120]
[377216159,1754296252615,-400.0,0.00046575,120]
[377216160,1754296252624,-400.0,0.00046575,120]
[377216161,1754296252633,-406.6751016,0.00046575,120]
[377216162,1754296252643,-400.0,0.00046575,120]
[377216163,1754296252652,-400.0,0.00046575,120]
[377216164,1754296252661,-683.36,0.00046575,120]
[377216165,1754296252671,-500.0,0.00046575,120]
[377216166,1754296252680,-450.41,0.00046575,120]
[377216167,1754296252689,-500.0,0.00046575,120]
[377216168,1754296252698,-400.0,0.00046575,120]
[377216169,1754296252707,-500.0,0.00046575,120]
[377216170,1754296252716,-500.0,0.00046575,120]
[377216171,1754296252726,-500.0,0.00046575,120]
[377216172,1754296252735,-151.0,0.00046575,14]
[377216173,1754296252745,-151.0,0.00046575,14]
[377216174,1754296252754,-400.0,0.00046575,120]
[377216175,1754296252764,-1683.42,0.00046575,120]
[377216176,1754296252773,-521.7766264,0.00046575,120]
[377216177,1754296252782,-400.0,0.00046575,120]
[377216178,1754296252791,-904.19,0.00046575,120]
[377216179,1754296252800,-818.38,0.00046575,120]
[377216180,1754296252810,-650.0,0.00046575,120]
[377216181,1754296252819,-583.78,0.00046575,120]
[377216182,1754296252829,-189.642267,0.00046575,14]
[377216183,1754296252838,-1387.86,0.00046575,120]
[377216184,1754296252847,-189.642267,0.00046575,14]
[377216185,1754296252857,-497.94,0.00046575,120]
[377216186,1754296252866,-502.94,0.00046575,120]
[377216187,1754296252875,-189.642267,0.00046575,14]
[377216188,1754296252884,-189.642267,0.00046575,14]
[377216189,1754296252894,-659.33,0.00046575,60]
[377216190,1754296252904,-475.92,0.00046575,120]
[377216191,1754296252913,-400.0,0.00046575,120]
[377216192,1754296252922,-400.0,0.00046575,120]
[377216193,1754296252932,-400.0,0.00046575,120]
[377216194,1754296252941,-400.0,0.00046575,120]
[377216195,1754296252951,-400.0,0.00046575,120]
[377216196,1754296252960,-498.75,0.00046575,120]
[377216197,1754296252969,-905.21573796,0.00046575,120]
[377216198,1754296252980,-400.0,0.00046575,120]
[377216199,1754296252989,-400.0,0.00046575,120]
[377216200,1754296252999,-737.5,0.00046575,120]
[377216201,1754296253008,-400.0,0.00046575,120]
[377216202,1754296253020,-546.8,0.00046575,120]
[377216203,1754296253030,-2682.01,0.00046575,120]
[377216204,1754296253039,-400.0,0.00046575,120]
[377216205,1754296253048,-934.03,0.00046575,120]
[377216206,1754296253058,-757.56,0.00046575,120]
[377216207,1754296253067,-400.0,0.00046575,120]
[377216208,1754296253077,-1054.25,0.00046575,120]
[377216209,1754296253086,-400.0,0.00046575,120]
[377216210,1754296253096,-1191.94,0.00046575,120]
[377216211,1754296253105,-1246.2,0.00046575,120]
[377216212,1754296253115,-1480.27,0.00046575,120]
[377216213,1754296253124,-403.78056741,0.00046575,120]
[377216214,1754296253133,-400.0,0.00046575,120]
[377216215,1754296253143,-400.0,0.00046575,120]
[377216216,1754296253153,-400.0,0.00046575,120]
[377216217,1754296253163,-631.87,0.00046575,120]
[377216218,1754296253172,-409.52,0.00046575,120]
[377216219,1754296253181,-456.06,0.00046575,120]
[377216220,1754296253190,-400.0,0.00046575,120]
[377216221,1754296253201,-400.0,0.00046575,120]
[377216222,1754296253210,-400.0,0.00046575,120]
[377216223,1754296253219,-400.0,0.00046575,120]
[377216224,1754296253229,-400.0,0.00046575,120]
[377216225,1754296253238,-345.33874656,0.00046575,120]
[377216226,1754296253247,-400.0,0.00046575,120]
[377216227,1754296253257,-1062.76,0.00046575,120]
[377216228,1754296253266,-400.0,0.00046575,120]
[377216229,1754296253276,-588.7,0.00046575,120]
[377216230,1754296253285,-400.74,0.00046575,120]
[377216231,1754296253295,-1000.0,0.00046575,120]
[377216232,1754296253304,-1572.82,0.00046575,120]
[377216233,1754296253313,-724.06,0.00046575,120]
[377216234,1754296253323,-400.0,0.00046575,120]
[377216235,1754296253333,-1129.18,0.00046575,120]
[377216236,1754296253342,-815.569593,0.00046575,14]
[377216237,1754296253352,-1372.64,0.00046575,120]
[377216238,1754296253361,-815.569593,0.00046575,14]
[377216239,1754296253371,-400.0,0.00046575,120]
[377216240,1754296253380,-154.82900023,0.00046575,120]
[377216241,1754296253390,-1815.98,0.00046575,120]
[377216242,1754296253399,-257.87177236,0.00046575,120]
[377216243,1754296253409,-400.0,0.00046575,120]
[377216244,1754296253418,-942.73,0.00046575,120]
[377216245,1754296253428,-400.0,0.00046575,120]
[377216246,1754296253437,-1439.84,0.00046575,120]
[377216247,1754296253446,-708.22,0.00046575,120]
[377216248,1754296253456,-454.54607486,0.00046575,120]
[377216249,1754296253465,-920.37,0.00046575,120]
[377216250,1754296253475,-400.0,0.00046575,120]
[377216251,1754296253484,-751.15,0.00046575,120]
[377216252,1754296253493,-627.29,0.00046575,120]
[377216253,1754296253503,-400.0,0.00046575,120]
[377216254,1754296253513,-977.16,0.00046575,120]
[377216255,1754296253526,-400.0,0.00046575,120]
[377216256,1754296253535,-522.77,0.00046575,120]
[377216257,1754296253545,-400.55234616,0.00046575,120]
[377216258,1754296253555,-2871.65,0.00046575,120]
[377216259,1754296253565,-400.0,0.00046575,120]
[377216260,1754296253574,-151.0,0.00046575,14]
[377216261,1754296253583,-151.0,0.00046575,14]
[377216262,1754296253594,-151.0,0.00046575,14]
[377216263,1754296253603,-729.67,0.00046575,120]
[377216264,1754296253612,-400.0,0.00046575,120]
[377216265,1754296253621,-400.0,0.00046575,120]
[377216266,1754296253631,-151.0,0.00046575,14]
[377216267,1754296253640,-152.931534,0.00046575,14]
[377216268,1754296253649,-467.64,0.00046575,120]
[377216269,1754296253659,-400.0,0.00046575,120]
[377216270,1754296253668,-400.0,0.00046575,120]
[377216271,1754296253678,-443.41500171,0.00046575,120]
[377216272,1754296253686,-599.2,0.00046575,120]
[377216273,1754296253696,-400.0,0.00046575,120]
[377216274,1754296253705,-400.0,0.00046575,120]
[377216275,1754296253714,-400.0,0.00046575,120]
[377216276,1754296253724,-800.43,0.00046575,120]
[377216277,1754296253734,-400.0,0.00046575,120]
[377216278,1754296253744,-400.0,0.00046575,120]
[377216279,1754296253753,-400.0,0.00046575,120]
[377216280,1754296253762,-400.8322433,0.00046575,120]
[377216281,1754296253771,-1433.81,0.00046575,120]
[377216282,1754296253780,-151.0,0.00046575,14]
[377216283,1754296253789,-151.0,0.00046575,14]
[377216284,1754296253799,-661.42,0.00046575,120]
[377216285,1754296253808,-151.0,0.00046575,14]
[377216286,1754296253818,-400.0,0.00046575,120]
[377216287,1754296253827,-1161.04,0.00046575,120]
[377216288,1754296253845,-400.0,0.00046575,120]
[377216289,1754296253857,-400.0,0.00046575,120]
[377216290,1754296253867,-533.93,0.00046575,120]
[377216291,1754296253877,-1109.79,0.00046575,120]
[377216292,1754296253887,-400.0,0.00046575,120]
[377216293,1754296253897,-400.0,0.00046575,120]
[377216294,1754296253906,-759.71,0.00046575,120]
[377216295,1754296253916,-400.0,0.00046575,120]
[377216296,1754296253925,-400.0,0.00046575,120]
[377216297,1754296253935,-400.0,0.00046575,120]
[377216298,1754296253944,-400.0,0.00046575,120]
[377216299,1754296253953,-1112.56,0.00046575,120]
[377216300,1754296253964,-400.0,0.00046575,120]
[377216301,1754296253974,-400.0,0.00046575,120]
[377216302,1754296253984,-400.0,0.00046575,120]
[377216303,1754296253993,-1452.2,0.00046575,120]
[377216304,1754296254003,-400.0,0.00046575,120]
[377216305,1754296254013,-400.0,0.00046575,120]
[377216306,1754296254022,-726.69,0.00046575,120]
[377216307,1754296254032,-400.0,0.00046575,120]
[377216308,1754296254042,-2324.07,0.00046575,120]
[377216309,1754296254051,-184.107189,0.00046575,14]
[377216310,1754296254061,-1061.5,0.00046575,120]
[377216311,1754296254070,-953.2,0.00046575,120]
[377216312,1754296254080,-400.0,0.00046575,120]
[377216313,1754296254089,-400.0,0.00046575,120]
[377216314,1754296254098,-232.81178315,0.00046575,120]
[377216315,1754296254108,-400.0,0.00046575,120]
[377216316,1754296254118,-400.0,0.00046575,120]
[377216317,1754296254127,-622.43,0.00046575,120]
[377216318,1754296254137,-484.97123647,0.00046575,120]
[377216319,1754296254147,-400.0,0.00046575,120]
[377216320,1754296254157,-400.0,0.00046575,120]
[377216321,1754296254166,-400.0,0.00046575,120]
[377216322,1754296254176,-400.0,0.00046575,120]
[377216323,1754296254185,-402.85519366,0.00046575,120]
[377216324,1754296254194,-400.0,0.00046575,120]
[377216325,1754296254204,-722.28,0.00046575,120]
[377216326,1754296254213,-400.0,0.00046575,120]
[377216327,1754296254223,-993.08,0.00046575,120]
[377216328,1754296254233,-400.0,0.00046575,120]
[377216329,1754296254243,-400.0,0.00046575,120]
[377216330,1754296254252,-1002.4,0.00046575,120]
[377216331,1754296254262,-400.0,0.00046575,120]
[377216332,1754296254271,-400.0,0.00046575,120]
[377216333,1754296254281,-400.4,0.00046575,120]
[377216334,1754296254291,-400.0,0.00046575,120]
[377216335,1754296254300,-1378.67,0.00046575,30]
[377216336,1754296254310,-400.0,0.00046575,120]
[377216337,1754296254319,-400.0,0.00046575,120]
[377216338,1754296254329,-400.0,0.00046575,120]
[377216339,1754296254339,-400.0,0.00046575,120]
[377216340,1754296254349,-446.59,0.00046575,120]
[377216341,1754296254358,-234.797223,0.00046575,14]
[377216342,1754296254368,-234.797223,0.00046575,14]
[377216343,1754296254377,-7199.66,0.00046575,120]
[377216344,1754296254387,-400.0,0.00046575,120]
[377216345,1754296254396,-407.3,0.00046575,120]
[377216346,1754296254406,-400.0,0.00046575,120]
[377216347,1754296254416,-1139.57,0.00046575,120]
[377216348,1754296254426,-400.0,0.00046575,120]
[377216349,1754296254436,-400.0,0.00046575,120]
[377216350,1754296254446,-234.797223,0.00046575,14]
[377216351,1754296254456,-234.797223,0.00046575,14]
[377216352,1754296254465,-1219.42,0.00046575,120]
[377216353,1754296254475,-472.4346024,0.00046575,120]
[377216354,1754296254485,-400.0,0.00046575,120]
[377216355,1754296254496,-400.0,0.00046575,120]
[377216356,1754296254507,-400.0,0.00046575,120]
[377216357,1754296254519,-664.81,0.00046575,120]
[377216358,1754296254528,-400.0,0.00046575,120]
[377216359,1754296254538,-400.0,0.00046575,120]
[377216360,1754296254548,-1126.1,0.00046575,120]
[377216361,1754296254559,-557.24,0.00046575,120]
[377216362,1754296254568,-626.87,0.00046575,120]
[377216363,1754296254578,-890.87,0.00046575,120]
[377216364,1754296254588,-400.0,0.00046575,120]
[377216365,1754296254598,-400.0,0.00046575,120]
[377216366,1754296254608,-400.0,0.00046575,20]
[377216367,1754296254618,-531.43,0.00046575,120]
[377216368,1754296254627,-891.96,0.00046575,120]
[377216369,1754296254636,-1250.84,0.00046575,120]
[377216370,1754296254649,-1043.59,0.00046575,120]
[377216371,1754296254659,-400.0,0.00046575,120]
[377216372,1754296254669,-617.15,0.00046575,120]
[377216373,1754296254683,-242.90358719,0.00046575,120]
[377216374,1754296254693,-613.53,0.00046575,120]
[377216375,1754296254702,-400.0,0.00046575,120]
[377216376,1754296254716,-151.0,0.00046575,14]
[377216377,1754296254726,-151.0,0.00046575,14]
[377216378,1754296254737,-559.59,0.00046575,120]
[377216379,1754296254747,-460.94967518,0.00046575,120]
[377216380,1754296254757,-521.4,0.00046575,120]
[377216381,1754296254767,-151.0,0.00046575,14]
[377216382,1754296254777,-151.0,0.00046575,14]
[377216383,1754296254790,-151.0,0.00046575,14]
[377216384,1754296254800,-529.39,0.00046575,120]
[377216385,1754296254809,-402.10258825,0.00046575,120]
[377216386,1754296254819,-400.0,0.00046575,120]
[377216387,1754296254829,-401.82316177,0.00046575,120]
[377216388,1754296254839,-400.0,0.00046575,120]
[377216389,1754296254849,-969.61,0.00046575,120]
[377216390,1754296254859,-400.0,0.00046575,120]
[377216391,1754296254869,-240.599875,0.00046575,120]
[377216392,1754296254879,-962.07,0.00046575,120]
[377216393,1754296254889,-614.98,0.00046575,120]
[377216394,1754296254898,-1049.01,0.00046575,120]
[377216395,1754296254908,-1010.21,0.00046575,120]
[377216396,1754296254918,-171.384427,0.00046575,14]
[377216397,1754296255082,-655.03,0.00046575,120]
[377216398,1754296255093,-400.0,0.00046575,120]
[377216399,1754296255103,-402.61420479,0.00046575,120]
[377216400,1754296255113,-400.0,0.00046575,120]
[377216401,1754296255122,-400.0,0.00046575,120]
[377216402,1754296255133,-140.60603682,0.00046575,120]
[377216403,1754296255888,-259.39396318,0.00046575,120]
[377216404,1754296255898,-1715.4558284,0.00046575,120]
[377216405,1754296255933,-960.6141716,0.00046575,120]
[377216406,1754296255943,-400.0,0.00046575,120]
[377216407,1754296255952,-444.83,0.00046575,120]
[377216408,1754296255961,-1057.91,0.00046575,120]
[377216409,1754296255971,-400.0,0.00046575,120]
[377216410,1754296255981,-942.13,0.00046575,120]
[377216411,1754296255991,-1246.05,0.00046575,120]
[377216412,1754296256000,-400.0,0.00046575,120]
[377216413,1754296256011,-400.0,0.00046575,120]
[377216414,1754296256021,-673.21,0.00046575,120]
[377216415,1754296256031,-400.0,0.00046575,120]
[377216416,1754296256040,-833.46,0.00046575,120]
[377216417,1754296256050,-400.0,0.00046575,120]